bitfinex-derivatives/quotes_BNBF0:USTF0_20250524
["timestamp","ask_amount","ask_price","bid_price","bid_amount"]
[1748052873270,1.09931342,662.69,662.05,1.624]
[1748052873471,1.09931342,662.68,662.05,1.624]
[1748052873671,1.09931342,662.67,662.05,1.624]
[1748052873872,1.09931342,662.66,662.05,1.624]
[1748052874171,1.09931342,662.65,662.05,1.624]
[1748052874364,1.50379737,662.76,662.05,1.624]
[1748052874571,1.59321336,662.75,662.05,1.624]
[1748052874765,1.59321336,662.74,662.07,1.09506973]
[1748052875065,1.59321336,662.73,662.07,1.09506973]
[1748052875371,1.59321336,662.72,662.07,1.09506973]
[1748052875566,1.59321271,662.71,662.07,1.09506973]
[1748052875769,1.59321271,662.7,662.07,1.09506973]
[1748052875970,1.09965601,662.69,662.07,1.09506973]
[1748052876169,1.09965601,662.68,662.07,1.09506973]
[1748052876370,1.09965601,662.67,662.07,1.09506973]
[1748052876668,1.09965601,662.66,662.07,1.09506973]
[1748052876866,1.50379737,662.87,662.07,1.09506973]
[1748052877066,1.59295659,662.86,662.07,1.09506973]
[1748052877267,1.59295613,662.85,662.07,1.09506973]
[1748052877470,1.59295613,662.84,662.07,1.09506973]
[1748052877669,1.59295613,662.83,662.07,1.09506973]
[1748052877868,1.59295613,662.82,662.07,1.09506973]
[1748052878065,1.59295613,662.81,662.07,1.09506973]
[1748052878267,1.59295613,662.8,662.07,1.09506973]
[1748052878467,1.59295613,662.79,662.07,1.09506973]
[1748052878771,1.59295613,662.78,662.11,1.09506973]
[1748052878970,1.59295613,662.77,662.11,1.09506973]
[1748052879170,1.59295613,662.76,662.11,1.09506973]
[1748052879469,1.59295613,662.75,662.11,1.09506973]
[1748052879669,1.59295613,662.74,662.11,1.09506973]
[1748052879870,1.59295613,662.73,662.11,1.09506973]
[1748052880072,1.59295613,662.72,662.11,1.09506973]
[1748052880370,1.59295613,662.71,662.11,1.09506973]
[1748052880570,1.59295613,662.7,662.11,1.09506973]
[1748052880870,1.0993996,662.69,662.11,1.09506973]
[1748052881070,1.0993996,662.68,662.11,1.09506973]
[1748052881270,1.0993996,662.67,662.11,1.09506973]
[1748052881468,1.0993996,662.66,662.11,1.09506973]
[1748052881667,1.0993996,662.65,662.11,1.09506973]
[1748052881972,1.50379737,662.8,662.13,1.09506973]
[1748052882271,1.59318613,662.79,662.13,1.09506973]
[1748052882468,1.59318613,662.78,662.13,1.09506973]
[1748052882674,1.59332477,662.77,662.13,1.09506973]
[1748052882873,1.59332477,662.76,662.13,1.09506973]
[1748052883074,1.59332477,662.75,662.13,1.09506973]
[1748052883274,1.59332477,662.74,662.13,1.09506973]
[1748052883474,1.59332477,662.73,662.13,1.09506973]
[1748052883675,1.59332477,662.72,662.13,1.09506973]
[1748052883873,1.59332477,662.71,662.13,1.09506973]
[1748052884073,1.59332477,662.7,662.13,1.09506973]
[1748052884274,1.59332477,662.69,662.13,1.09506973]
[1748052884575,1.59332477,662.68,662.13,1.09506973]
[1748052884775,1.0997225,662.67,662.13,1.09506973]
[1748052884975,1.0997225,662.66,662.1,1.09506973]
[1748052885180,1.0997225,662.65,662.1,1.09506973]
[1748052885377,1.0997225,662.64,662.1,1.09506973]
[1748052885578,1.0997225,662.63,662.1,1.09506973]
[1748052885779,1.50379737,662.84,662.1,1.09506973]
[1748052885982,1.59400433,662.83,662.1,1.09506973]
[1748052886177,1.59400433,662.82,662.1,1.09506973]
[1748052886374,1.5940041,662.81,662.1,1.09506973]
[1748052886678,1.5940041,662.8,662.1,1.09506973]
[1748052886875,1.5940041,662.79,662.1,1.09506973]
[1748052887078,1.5940041,662.78,662.1,1.09506973]
[1748052887378,1.5940041,662.77,662.1,1.09506973]
[1748052887676,1.59423031,662.76,662.11,1.09506973]
[1748052887876,1.59423031,662.75,662.11,1.09506973]
[1748052888079,1.59423031,662.74,662.11,1.09506973]
[1748052888281,1.59433345,662.73,662.11,1.09506973]
[1748052888476,1.59433345,662.72,662.11,1.09506973]
[1748052888678,1.59433345,662.71,662.11,1.09506973]
[1748052888878,1.59433345,662.7,662.11,1.09506973]
[1748052889082,1.59433345,662.69,662.11,1.09506973]
[1748052889276,1.59433345,662.68,662.11,1.09506973]
[1748052889575,1.59433345,662.67,662.11,1.09506973]
[1748052889778,1.59433345,662.66,662.11,1.09506973]
[1748052889980,1.1006484,662.65,662.11,1.09506973]
[1748052890180,1.1006484,662.64,662.11,1.09506973]
[1748052890480,1.1006484,662.63,662.11,1.09506973]
[1748052890676,1.1006484,662.62,662.11,1.09506973]
[1748052890883,1.5948075,662.61,662.11,1.09506973]
[1748052891075,1.1006484,662.6,662.05,1.624]
[1748052891277,1.1006484,662.59,662.05,1.624]
[1748052891586,1.1006484,662.58,662.05,1.624]
[1748052891779,1.1006484,662.57,662.05,1.624]
[1748052892082,1.1006484,662.56,662.05,1.624]
[1748052892283,1.1006484,662.55,662.05,1.624]
[1748052892482,1.1006484,662.54,662.05,1.624]
[1748052892684,1.50379737,662.81,662.05,1.624]
[1748052892878,1.59642822,662.8,662.05,1.624]
[1748052893083,1.59642822,662.79,662.05,1.624]
[1748052893381,1.59642822,662.78,662.05,1.624]
[1748052893585,1.59649721,662.77,662.05,1.624]
[1748052893883,1.59649721,662.76,662.05,1.624]
[1748052894078,1.59649721,662.75,662.05,1.624]
[1748052894283,1.59649721,662.74,662.05,1.624]
[1748052894483,1.59649721,662.73,662.05,1.624]
[1748052894684,1.59649721,662.72,662.05,1.624]
[1748052894886,1.59649721,662.71,662.05,1.624]
[1748052895081,1.59649721,662.7,662.05,1.624]
[1748052895289,1.59649721,662.69,662.05,1.624]
[1748052895480,1.59677271,662.68,662.05,1.624]
[1748052895682,1.59677271,662.67,662.05,1.624]
[1748052895887,1.59677271,662.66,662.05,1.624]
[1748052896081,1.59677271,662.65,662.05,1.624]
[1748052896309,1.59677271,662.64,662.05,1.624]
[1748052896488,1.59677271,662.63,662.05,1.624]
[1748052896792,1.59677271,662.62,662.05,1.624]
[1748052897089,1.59677271,662.61,662.05,1.624]
[1748052897287,1.59749539,662.6,662.05,1.624]
[1748052897487,1.59749539,662.59,662.05,1.624]
[1748052897686,1.59751659,662.58,662.05,1.624]
[1748052897889,1.59751659,662.57,662.05,1.624]
[1748052898183,1.10254535,662.56,662.05,1.624]
[1748052898485,1.10254535,662.55,662.05,1.624]
[1748052898682,1.10254535,662.54,662.05,1.624]
[1748052898885,1.10254535,662.53,662.05,1.624]
[1748052899083,1.10130411,662.52,662.05,1.624]
[1748052899286,1.50379737,662.75,662.05,1.624]
[1748052899587,1.59637406,662.74,662.05,1.624]
[1748052899785,1.59637406,662.73,662.05,1.624]
[1748052899983,1.59637406,662.72,662.05,1.624]
[1748052900187,1.59637406,662.71,662.05,1.624]
[1748052900384,1.59637406,662.7,662.05,1.624]
[1748052900588,1.59637406,662.69,662.05,1.624]
[1748052900790,1.59637406,662.68,662.05,1.624]
[1748052900990,1.59637406,662.67,662.05,1.624]
[1748052901190,1.59637406,662.66,662.05,1.624]
[1748052901392,1.59637406,662.65,662.05,1.624]
[1748052901591,1.59637406,662.64,662.04,1.09506973]
[1748052901791,1.59637406,662.63,662.04,1.09506973]
[1748052901986,1.59635594,662.62,662.04,1.09506973]
[1748052902190,1.59635594,662.61,662.04,1.09506973]
[1748052902493,1.59635594,662.6,662.04,1.09506973]
[1748052902791,1.59635594,662.59,662.04,1.09506973]
[1748052902988,1.59635594,662.58,662.1,1.09506973]
[1748052903197,1.10130968,662.57,662.1,1.09506973]
[1748052903393,1.10130968,662.56,662.1,1.09506973]
[1748052903694,1.10130968,662.55,662.1,1.09506973]
[1748052903894,1.50379737,662.67,662.1,1.09506973]
[1748052903895,1.10022147,662.54,662.1,1.09506973]
[1748052904091,1.10022147,662.53,662.1,1.09506973]
[1748052904292,1.50379737,662.67,662.1,1.09506973]
[1748052904492,1.59521233,662.66,662.1,1.09506973]
[1748052904694,1.10022368,662.65,662.11,1.674]
[1748052904892,1.10022368,662.64,662.11,1.674]
[1748052905092,1.10022368,662.63,662.11,1.674]
[1748052905295,1.50379737,662.67,662.11,1.674]
[1748052905496,1.09998191,662.66,662.17,1.09506973]
[1748052905790,1.50379737,662.81,662.17,1.09506973]
[1748052905990,1.59482314,662.8,662.17,1.09506973]
[1748052906190,1.59482314,662.79,662.17,1.09506973]
[1748052906389,1.59482314,662.78,662.17,1.09506973]
[1748052906590,1.59482314,662.77,662.17,1.09506973]
[1748052906791,1.59482314,662.76,662.17,1.09506973]
[1748052906993,1.59482314,662.75,662.17,1.09506973]
[1748052907192,1.59482314,662.74,662.17,1.09506973]
[1748052907395,1.59482314,662.73,662.17,1.09506973]
[1748052907594,1.59482314,662.72,662.17,1.09506973]
[1748052907795,1.09997585,662.71,662.17,1.09506973]
[1748052907993,1.09997585,662.7,662.17,1.09506973]
[1748052908290,1.09997585,662.69,662.17,1.09506973]
[1748052908495,1.09997585,662.68,662.2,1.09506973]
[1748052908794,1.50379737,662.86,662.2,1.09506973]
[1748052908992,1.59437895,662.85,662.2,1.09506973]
[1748052909194,1.59437895,662.84,662.2,1.09506973]
[1748052909393,1.59437895,662.83,662.2,1.09506973]
[1748052909688,1.59437895,662.82,662.2,1.09506973]
[1748052909892,1.59437895,662.81,662.2,1.09506973]
[1748052910090,1.59437895,662.8,662.2,1.09506973]
[1748052910294,1.59437895,662.79,662.2,1.09506973]
[1748052910491,1.59437895,662.78,662.2,1.09506973]
[1748052910693,1.59437895,662.77,662.2,1.09506973]
[1748052910891,1.59437895,662.76,662.2,1.09506973]
[1748052911095,1.59420967,662.75,662.2,1.09506973]
[1748052911294,1.59420967,662.74,662.2,1.09506973]
[1748052911498,1.0994656,662.73,662.2,1.09506973]
[1748052911797,1.50379737,662.82,662.22,1.09506973]
[1748052911999,1.59392143,662.81,662.22,1.09506973]
[1748052912199,1.59392143,662.8,662.22,1.09506973]
[1748052912399,1.59392143,662.79,662.22,1.09506973]
[1748052912595,1.09932333,662.78,662.22,1.09506973]
[1748052912798,1.59384734,662.77,662.22,1.09506973]
[1748052912999,1.09915643,662.76,662.22,1.09506973]
[1748052913195,1.50379737,662.82,662.22,1.09506973]
[1748052913196,1.09915643,662.75,662.22,1.09506973]
[1748052913399,1.09915643,662.74,662.22,1.09506973]
[1748052913600,1.09915643,662.73,662.22,1.09506973]
[1748052913800,1.50379737,662.82,662.22,1.09506973]
[1748052914003,1.59362881,662.81,662.22,1.09506973]
[1748052914197,1.59362881,662.8,662.22,1.09506973]
[1748052914401,1.59362881,662.79,662.22,1.09506973]
[1748052914601,1.59362881,662.78,662.22,1.09506973]
[1748052914902,1.09916077,662.77,662.22,1.09506973]
[1748052915104,1.09916077,662.76,662.22,1.09506973]
[1748052915301,1.09916077,662.75,662.22,1.09506973]
[1748052915600,1.80549289,662.92,662.22,1.09506973]
[1748052915801,1.59328613,662.91,662.22,1.09506973]
[1748052916001,1.59328613,662.9,662.22,1.09506973]
[1748052916204,1.59328613,662.89,662.22,1.09506973]
[1748052916400,1.59328613,662.88,662.22,1.09506973]
[1748052916601,1.59328613,662.87,662.22,1.09506973]
[1748052916800,1.59328613,662.86,662.22,1.09506973]
[1748052917100,1.59328613,662.85,662.22,1.09506973]
[1748052917300,1.59328613,662.84,662.22,1.09506973]
[1748052917500,1.59328613,662.83,662.22,1.09506973]
[1748052917800,1.59328613,662.82,662.22,1.09506973]
[1748052918000,1.59328613,662.81,662.22,1.09506973]
[1748052918198,1.09893559,662.8,662.22,1.09506973]
[1748052918403,1.59302223,662.79,662.22,1.09506973]
[1748052918599,1.09870938,662.78,662.2,1.09506973]
[1748052918801,1.09870938,662.77,662.2,1.09506973]
[1748052918998,1.09870938,662.76,662.2,1.09506973]
[1748052919198,0.30169552,662.92,662.2,1.09506973]
[1748052919401,1.59292003,662.91,662.2,1.09506973]
[1748052919602,1.59292003,662.9,662.2,1.09506973]
[1748052919803,1.59292003,662.89,662.2,1.09506973]
[1748052920003,1.59292003,662.88,662.2,1.09506973]
[1748052920301,1.59292003,662.87,662.2,1.09506973]
[1748052920502,1.59292003,662.86,662.2,1.09506973]
[1748052920702,1.59292003,662.85,662.2,1.09506973]
[1748052921002,1.59292003,662.84,662.2,1.09506973]
[1748052921203,1.59292003,662.83,662.2,1.09506973]
[1748052921501,1.59292003,662.82,662.21,1.09506973]
[1748052921701,1.59292003,662.81,662.21,1.09506973]
[1748052921902,1.0984589,662.8,662.21,1.09506973]
[1748052922104,1.0984589,662.79,662.21,1.09506973]
[1748052922304,1.0984589,662.78,662.21,1.09506973]
[1748052922603,1.0984589,662.77,662.21,1.09506973]
[1748052922806,1.0984589,662.76,662.21,1.09506973]
[1748052923002,0.30169552,662.92,662.21,1.09506973]
[1748052923204,1.59259821,662.91,662.21,1.09506973]
[1748052923404,1.59259821,662.9,662.21,1.09506973]
[1748052923605,1.59259821,662.89,662.21,1.09506973]
[1748052923805,1.59259821,662.88,662.21,1.09506973]
[1748052924003,1.59259821,662.87,662.21,1.09506973]
[1748052924207,1.59259821,662.86,662.21,1.09506973]
[1748052924507,1.59259821,662.85,662.21,1.09506973]
[1748052924810,1.59259821,662.84,662.24,1.09506973]
[1748052925008,1.09825182,662.83,662.24,1.09506973]
[1748052925308,1.50379737,662.9,662.24,1.09506973]
[1748052925505,1.59217144,662.89,662.24,1.09506973]
[1748052925802,1.09814676,662.88,662.24,1.09506973]
[1748052926006,1.09814676,662.87,662.24,1.09506973]
[1748052926211,1.09814676,662.86,662.25,1.353]
[1748052926411,1.50379737,662.9,662.25,1.353]
[1748052928006,1.50379737,663.16,662.39,1.09506973]
[1748052928311,1.59088093,663.15,662.39,1.09506973]
[1748052928609,1.09725381,663.14,662.39,1.09506973]
[1748052928806,1.09725381,663.13,662.39,1.09506973]
[1748052929001,1.50379737,663.16,662.39,1.09506973]
[1748052929207,1.09674622,663.15,662.39,1.09506973]
[1748052929403,1.50379737,663.16,662.39,1.09506973]
[1748052930812,1.50379737,663.45,662.45,1.09506973]
[1748052931015,1.58836379,663.44,662.45,1.09506973]
[1748052931313,1.58836379,663.43,662.45,1.09506973]
[1748052931515,1.58836379,663.42,662.45,1.09506973]
[1748052931812,1.58836379,663.41,662.45,1.09506973]
[1748052932012,1.58836379,663.4,662.45,1.09506973]
[1748052932215,1.58836379,663.39,662.45,1.09506973]
[1748052932415,1.58836379,663.38,662.45,1.09506973]
[1748052932714,1.58739425,663.37,662.45,1.09506973]
[1748052933016,1.58739425,663.36,662.45,1.09506973]
[1748052933217,1.58739425,663.35,662.45,1.09506973]
[1748052933413,1.58739425,663.34,662.45,1.09506973]
[1748052933616,1.58739425,663.33,662.45,1.09506973]
[1748052933817,1.58739425,663.32,662.45,1.09506973]
[1748052934009,1.58739425,663.31,662.31,1.09506973]
[1748052934210,1.58739425,663.3,662.31,1.09506973]
[1748052934409,1.58623424,663.29,662.31,1.09506973]
[1748052934609,1.58623424,663.28,662.31,1.09506973]
[1748052934813,1.58623424,663.27,662.31,1.09506973]
[1748052935013,1.58623424,663.26,662.31,1.09506973]
[1748052935212,1.58623424,663.25,662.31,1.09506973]
[1748052935415,1.58623424,663.24,662.31,1.09506973]
[1748052935717,1.58623424,663.23,662.31,1.09506973]
[1748052936017,1.58623424,663.22,662.31,1.09506973]
[1748052936316,1.58583815,663.21,662.31,1.09506973]
[1748052936513,1.09387343,663.2,662.31,1.09506973]
[1748052936714,0.26244245,663.59,662.29,1.09506973]
[1748052936715,1.09387343,663.19,662.29,1.09506973]
[1748052936916,1.09387343,663.18,662.29,1.09506973]
[1748052937114,1.09387343,663.17,662.29,1.09506973]
[1748052937316,1.09387343,663.16,662.29,1.09506973]
[1748052937510,1.09387343,663.15,662.29,1.09506973]
[1748052937715,1.76623982,663.59,662.29,1.09506973]
[1748052937919,1.88658596,663.58,662.29,1.09506973]
[1748052938119,1.8865905,663.57,662.29,1.09506973]
[1748052938320,1.88659504,663.56,662.29,1.09506973]
[1748052938513,1.88659958,663.55,662.29,1.09506973]
[1748052938718,1.88660412,663.54,662.29,1.09506973]
[1748052939018,1.88660867,663.53,662.29,1.09506973]
[1748052939318,1.88661321,663.52,662.29,1.09506973]
[1748052939513,1.88661775,663.51,662.29,1.09506973]
[1748052939715,1.8866223,663.5,662.27,1.09506973]
[1748052939918,1.88609202,663.49,662.27,1.09506973]
[1748052940121,1.88609656,663.48,662.27,1.09506973]
[1748052940321,1.88610111,663.47,662.27,1.09506973]
[1748052940520,1.88610565,663.46,662.27,1.09506973]
[1748052940714,1.58465568,663.45,662.27,1.09506973]
[1748052940918,1.58465568,663.44,662.27,1.09506973]
[1748052941119,1.58465568,663.43,662.27,1.09506973]
[1748052941320,1.58465568,663.42,662.27,1.09506973]
[1748052941619,1.58465568,663.41,662.27,1.09506973]
[1748052941820,1.58465568,663.4,662.27,1.09506973]
[1748052942020,1.58465568,663.39,662.27,1.09506973]
[1748052942220,1.58465568,663.38,662.27,1.09506973]
[1748052942419,1.58465568,663.37,662.27,1.09506973]
[1748052942619,1.58465568,663.36,662.27,1.09506973]
[1748052942819,1.58465568,663.35,662.27,1.09506973]
[1748052943022,1.58465568,663.34,662.27,1.09506973]
[1748052943220,1.58465568,663.33,662.35,1.09506973]
[1748052943419,1.58465568,663.32,662.35,1.09506973]
[1748052943615,1.58465568,663.31,662.35,1.09506973]
[1748052943820,1.58465568,663.3,662.35,1.09506973]
[1748052944021,1.58465568,663.29,662.35,1.09506973]
[1748052944218,1.58465568,663.28,662.35,1.09506973]
[1748052944421,1.58465568,663.27,662.35,1.09506973]
[1748052944618,1.58465568,663.26,662.35,1.09506973]
[1748052944821,1.58465568,663.25,662.35,1.09506973]
[1748052945021,1.50379737,663.53,662.35,1.09506973]
[1748052945022,1.58465568,663.24,662.35,1.09506973]
[1748052945222,1.09235888,663.23,662.35,1.09506973]
[1748052945424,1.09235888,663.22,662.35,1.09506973]
[1748052945617,1.09235888,663.21,662.35,1.09506973]
[1748052945823,1.09235888,663.2,662.35,1.09506973]
[1748052946119,1.09235888,663.19,662.35,1.09506973]
[1748052946321,1.09235888,663.18,662.35,1.09506973]
[1748052946524,1.09218785,663.17,662.35,1.09506973]
[1748052946825,1.50379737,663.53,662.35,1.09506973]
[1748052947028,1.58334666,663.52,662.35,1.09506973]
[1748052947224,1.58334666,663.51,662.35,1.09506973]
[1748052947419,1.58334666,663.5,662.35,1.09506973]
[1748052947620,1.58334666,663.49,662.35,1.09506973]
[1748052947822,1.58334666,663.48,662.35,1.09506973]
[1748052948026,1.58334666,663.47,662.35,1.09506973]
[1748052948224,1.58334666,663.46,662.35,1.09506973]
[1748052948424,1.58334666,663.45,662.35,1.09506973]
[1748052948627,1.58334666,663.44,662.35,1.09506973]
[1748052948923,1.58334666,663.43,662.35,1.09506973]
[1748052949125,1.58334666,663.42,662.35,1.09506973]
[1748052949325,1.58334666,663.41,662.35,1.09506973]
[1748052949523,1.58334666,663.4,662.32,1.09506973]
[1748052949719,1.58334666,663.39,662.32,1.09506973]
[1748052949920,1.58334666,663.38,662.32,1.09506973]
[1748052950125,1.58334666,663.37,662.32,1.09506973]
[1748052950324,1.58334666,663.36,662.32,1.09506973]
[1748052950628,1.58326475,663.35,662.32,1.09506973]
[1748052950827,1.58326475,663.34,662.32,1.09506973]
[1748052951025,1.58326475,663.33,662.32,1.09506973]
[1748052951226,1.58326475,663.32,662.32,1.09506973]
[1748052951425,1.58326475,663.31,662.32,1.09506973]
[1748052951620,1.58326475,663.3,662.32,1.09506973]
[1748052951826,1.58326475,663.29,662.32,1.09506973]
[1748052952022,1.58326475,663.28,662.31,1.09506973]
[1748052952222,1.58326475,663.27,662.31,1.09506973]
[1748052952526,1.58350999,663.26,662.31,1.09506973]
[1748052952727,1.58350999,663.25,662.31,1.09506973]
[1748052952930,1.58350999,663.24,662.31,1.09506973]
[1748052953226,1.58350999,663.23,662.31,1.09506973]
[1748052953422,1.58350999,663.22,662.31,1.09506973]
[1748052953622,1.58350999,663.21,662.31,1.09506973]
[1748052953823,1.09227505,663.2,662.31,1.09506973]
[1748052954025,1.09227505,663.19,662.31,1.09506973]
[1748052954226,1.09227505,663.18,662.31,1.09506973]
[1748052954425,1.09227505,663.17,662.31,1.09506973]
[1748052954720,1.09227505,663.16,662.31,1.09506973]
[1748052955027,1.09227505,663.15,662.33,1.09506973]
[1748052955226,1.09227505,663.14,662.33,1.09506973]
[1748052955427,1.50379737,663.41,662.33,1.09506973]
[1748052955628,1.58410343,663.4,662.33,1.09506973]
[1748052955822,1.58410343,663.39,662.33,1.09506973]
[1748052956028,1.58412357,663.38,662.33,1.09506973]
[1748052956325,1.58412357,663.37,662.33,1.09506973]
[1748052956628,1.58412357,663.36,662.33,1.09506973]
[1748052956825,1.58412357,663.35,662.33,1.09506973]
[1748052957025,1.58412357,663.34,662.33,1.09506973]
[1748052957228,1.58412357,663.33,662.33,1.09506973]
[1748052957426,1.50379737,663.41,662.33,1.09506973]
[1748052957427,1.58412357,663.32,662.33,1.09506973]
[1748052957625,1.58412357,663.31,662.33,1.09506973]
[1748052957825,1.5843094,663.3,662.33,1.09506973]
[1748052958028,1.5843094,663.29,662.33,1.09506973]
[1748052958329,1.5843094,663.28,662.33,1.09506973]
[1748052958529,1.5843094,663.27,662.33,1.09506973]
[1748052958726,1.5843094,663.26,662.33,1.09506973]
[1748052958931,1.5843094,663.25,662.33,1.09506973]
[1748052959127,1.5843094,663.24,662.33,1.09506973]
[1748052959324,1.5843094,663.23,662.33,1.09506973]
[1748052959528,1.5843094,663.22,662.33,1.09506973]
[1748052959725,1.58454827,663.21,662.33,1.09506973]
[1748052959931,1.58454827,663.2,662.33,1.09506973]
[1748052960128,1.58454827,663.19,662.33,1.09506973]
[1748052960329,1.58454827,663.18,662.33,1.09506973]
[1748052960533,1.58454827,663.17,662.33,1.09506973]
[1748052960727,1.58454827,663.16,662.33,1.09506973]
[1748052960931,1.58454827,663.15,662.33,1.09506973]
[1748052961132,1.58560049,663.14,662.33,1.09506973]
[1748052961328,1.58560049,663.13,662.33,1.09506973]
[1748052961529,1.58560049,663.12,662.33,1.09506973]
[1748052961735,1.09370065,663.11,662.27,1.09506973]
[1748052961930,1.09370065,663.1,662.27,1.09506973]
[1748052962131,1.58573005,663.09,662.27,1.09506973]
[1748052962330,1.58573005,663.08,662.27,1.09506973]
[1748052962534,1.58573005,663.07,662.27,1.09506973]
[1748052962733,1.58573005,663.06,662.27,1.09506973]
[1748052962930,1.58573005,663.05,662.27,1.09506973]
[1748052963128,0.4920294,663.04,662.27,1.09506973]
[1748052963329,1.58617215,663.03,662.27,1.09506973]
[1748052963535,1.09414275,663.02,662.27,1.09506973]
[1748052963735,1.09414275,663.01,662.27,1.09506973]
[1748052963934,1.09414275,663.0,662.27,1.09506973]
[1748052964237,1.09414275,662.99,662.27,1.09506973]
[1748052964435,1.09414275,662.98,662.27,1.09506973]
[1748052964634,1.09414275,662.97,662.25,1.353]
[1748052964836,1.12371235,663.03,662.25,1.353]
[1748052965035,1.58721172,663.02,662.25,1.353]
[1748052965234,1.09479519,663.01,662.25,1.353]
[1748052965431,1.09479519,663.0,662.25,1.353]
[1748052965631,1.09479519,662.99,662.25,1.353]
[1748052965835,1.09479519,662.98,662.25,1.353]
[1748052966038,1.09479519,662.97,662.25,1.353]
[1748052966234,1.0949642,662.96,662.25,1.353]
[1748052966434,1.12371235,663.03,662.25,1.353]
[1748052966631,1.58765331,663.02,662.25,1.353]
[1748052966834,1.12371235,663.0,662.25,1.353]
[1748052967134,1.09509995,662.99,662.25,1.353]
[1748052967434,1.09509995,662.98,662.25,1.353]
[1748052967730,1.09509995,662.97,662.25,1.353]
[1748052967934,1.12371235,663.0,662.25,1.353]
[1748052968130,1.09524245,662.99,662.25,1.353]
[1748052968331,1.09524245,662.98,662.25,1.353]
[1748052968532,1.09524245,662.97,662.25,1.353]
[1748052968737,1.12371235,663.0,662.25,1.353]
[1748052969032,1.09539249,662.99,662.25,1.353]
[1748052969236,1.09539249,662.98,662.25,1.353]
[1748052969437,1.09539249,662.97,662.25,1.353]
[1748052969634,1.09539249,662.96,662.25,1.353]
[1748052969839,1.12371235,662.97,662.25,1.353]
[1748052970031,1.09555012,662.96,662.25,1.353]
[1748052970236,1.12371235,662.97,662.25,1.353]
[1748052970433,1.09555241,662.96,662.25,1.353]
[1748052970637,1.09555241,662.95,662.25,1.353]
[1748052970837,1.12371235,662.97,662.25,1.353]
[1748052971038,1.09571814,662.96,662.25,1.353]
[1748052971239,1.09571518,662.95,662.25,1.353]
[1748052971439,1.12371235,662.97,662.25,1.353]
[1748052971639,1.09588841,662.96,662.25,1.353]
[1748052971834,1.09588841,662.95,662.25,1.353]
[1748052972036,1.12371235,662.97,662.25,1.353]
[1748052972241,1.12371235,662.94,662.25,1.353]
[1748052973640,1.09607901,662.93,662.25,1.353]
[1748052973841,1.58892474,662.92,662.25,1.353]
[1748052974040,1.58892474,662.91,662.25,1.353]
[1748052974338,1.09607901,662.9,662.25,1.353]
[1748052974539,1.09607901,662.89,662.25,1.353]
[1748052974834,1.09607901,662.88,662.25,1.353]
[1748052975036,1.09607901,662.87,662.25,1.353]
[1748052975238,1.09607901,662.86,662.25,1.353]
[1748052975439,1.09633321,662.85,662.25,1.353]
[1748052975639,1.12371235,662.94,662.25,1.353]
[1748052975937,1.58918234,662.93,662.25,1.353]
[1748052976139,1.12371235,662.86,662.25,1.353]
[1748052976340,1.0962787,662.85,662.25,1.353]
[1748052977242,1.0962787,662.85,662.14,1.09506973]
[1748052978947,1.09636752,662.84,662.14,1.09506973]
[1748052979144,1.09636752,662.83,662.14,1.09506973]
[1748052979341,1.09636752,662.82,662.14,1.09506973]
[1748052979547,1.12371235,662.85,662.08,1.09506973]
[1748052979745,1.09634081,662.84,662.08,1.09506973]
[1748052980041,1.09634081,662.83,662.08,1.09506973]
[1748052980243,1.09634081,662.82,662.08,1.09506973]
[1748052980442,1.12371235,662.85,662.08,1.09506973]
[1748052980644,1.09629305,662.84,662.08,1.09506973]
[1748052980845,1.0963,662.83,662.09,1.731]
[1748052981042,1.0963,662.82,662.09,1.731]
[1748052981245,1.12371235,662.85,662.09,1.731]
[1748052981443,1.09627254,662.84,662.09,1.731]
[1748052981646,1.09627254,662.83,662.09,1.731]
[1748052981845,1.12371235,662.85,662.09,1.731]
[1748052982048,1.09613613,662.84,662.09,1.731]
[1748052982349,1.12371235,662.85,662.09,1.731]
[1748052982551,1.09618187,662.84,662.09,1.731]
[1748052982750,1.12371235,662.85,662.09,1.731]
[1748052982952,1.09627491,662.84,662.09,1.731]
[1748052983251,1.12371235,662.85,662.09,1.731]
[1748052983450,1.09628543,662.84,662.09,1.731]
[1748052983647,1.12371235,662.9,662.13,1.09506973]
[1748052983848,1.58927141,662.89,662.13,1.09506973]
[1748052984050,1.58927141,662.88,662.13,1.09506973]
[1748052984251,1.09631275,662.87,662.13,1.09506973]
[1748052984452,1.09631275,662.86,662.13,1.09506973]
[1748052984651,1.09631275,662.85,662.13,1.09506973]
[1748052984847,1.09631275,662.84,662.13,1.09506973]
[1748052985054,1.12371235,662.9,662.13,1.09506973]
[1748052985250,1.58919126,662.89,662.13,1.09506973]
[1748052985450,1.58919126,662.88,662.13,1.09506973]
[1748052985653,1.09629295,662.87,662.13,1.09506973]
[1748052985853,1.09629295,662.86,662.13,1.09506973]
[1748052986056,1.09629295,662.85,662.13,1.09506973]